[Event "Lichtenrader Herbst 2019"]
[Site "Berlin"]
[Date "2019.10.20"]
[Round "9.5"]
[White "Katzir, Moshe"]
[Black "Roehr, Oliver"]
[Result "1-0"]
[ECO "C47"]
[WhiteElo "2125"]
[BlackElo "1987"]
[Annotator "NA"]
[PlyCount "79"]
[EventDate "2019.10.12"]
[EventType "swiss"]
[EventCountry "GER"]
[SourceTitle "playchess.com"]
[Source "ChessBase"]
[SourceQuality "1"]
[TimeControl "40/5400+30:1800+30"]

1. e4 {[%emt 0:00:00]} e5 {[%emt 0:00:00]} 2. Nc3 {[%emt 0:00:00]} Nf6 {[%emt 0:00:00]} 3. g3 {[%emt 0:00:14]} d5 {[%emt 0:00:01]} 4. exd5 {[%emt 0:00:30]} Nxd5 {[%emt 0:00:08]} 5. Bg2 {[%emt 0:00:09]} Nxc3 {[%emt 0:00:09]} 6. bxc3 {[%emt 0:00:12]} Nc6 {[%emt 0:00:12]} 7. Nf3 {[%emt 0:03:01]} Bc5 {[%emt 0:00:25]} 8. O-O {[%emt 0:01:56]} O-O {[%emt 0:01:37]} 9. d3 {[%emt 0:02:31]} Bg4 {[%emt 0:07:53]} 10. h3 {[%emt 0:04:28]} Bh5 {[%emt 0:01:03]} 11. g4 {[%emt 0:08:38]} Bg6 {[%emt 0:00:16]} 12. Ng5 {[%emt 0:14:32]} Bb6 {[%emt 0:11:42]} 13. Rb1 {[%emt 0:19:37]} Qd7 {[%emt 0:14:33]} 14. c4 {[%emt 0:21:00]} Rfe8 {[%emt 0:16:49]} 15. Be3 {[%emt 0:02:34]} Bxe3 {[%emt 0:03:09]} 16. fxe3 {[%emt 0:00:07]} Rab8 {[%emt 0:03:42]} 17. h4 {[%emt 0:04:44]} h6 {[%emt 0:04:35]} 18. Ne4 {[%emt 0:02:11]} Qe7 {[%emt 0:02:48]} 19. Qe1 {[%emt 0:01:38]} Rf8 {[%emt 0:06:28]} 20. g5 {[%emt 0:04:35]} Bxe4 {[%emt 0:01:07]} 21. Bxe4 {[%emt 0:00:05]} hxg5 {[%emt 0:00:22]} 22. h5 {[%emt 0:02:14]} Qe6 {[%emt 0:05:17]} 23. Qg3 {[%emt 0:00:18]} Qh6 {[%emt 0:04:34]} 24. Qg4 {[%emt 0:02:58]} Ne7 {[%emt 0:02:05]} 25. Qd7 {[%emt 0:01:21]} Qd6 {[%emt 0:05:59]} 26. Qxd6 {[%emt 0:01:31]} cxd6 {[%emt 0:00:02]} 27. Bxb7 {[%emt 0:00:08]} f5 {[%emt 0:00:55]} 28. d4 {[%emt 0:00:33]} f4 {[%emt 0:01:34]} 29. c5 {[%emt 0:00:41]} dxc5 {[%emt 0:01:22]} 30. dxc5 {[%emt 0:00:06]} fxe3 {[%emt 0:00:45]} 31. Rfe1 {[%emt 0:00:41]} Nf5 {[%emt 0:01:08]} 32. c6 {[%emt 0:01:29]} Nd4 {[%emt 0:00:44]} 33. c7 {[%emt 0:01:15]} Rbe8 {[%emt 0:02:14]} 34. Rxe3 {[%emt 0:00:26]} Kf7 {[%emt 0:02:02]} 35. Rf1+ {[%emt 0:00:17]} Ke6 {[%emt 0:00:18]} 36. Rxf8 {[%emt 0:00:16]} Rxf8 {[%emt 0:00:09]} 37. c8=Q+ {[%emt 0:00:02]} Rxc8 {[%emt 0:00:14]} 38. Bxc8+ {[%emt 0:00:04]} Kd5 {[%emt 0:00:08]} 39. c3 {[%emt 0:00:39]} Nc2 {[%emt 0:00:31]} 40. Bb7+ {[%emt 0:01:00]} 1-0

[Event "Lichtenrader Herbst 2019"]
[Site "Berlin"]
[Date "2019.10.20"]
[Round "9.6"]
[White "Wierzbicki, Jirawat"]
[Black "Fuchs, Dominik"]
[Result "1-0"]
[ECO "C54"]
[WhiteElo "2114"]
[BlackElo "1939"]
[Annotator "ChessBase"]
[PlyCount "55"]
[EventDate "2019.10.12"]
[EventType "swiss"]
[EventCountry "GER"]
[SourceTitle "playchess.com"]
[Source "ChessBase"]
[SourceQuality "1"]
[TimeControl "40/5400+30:1800+30"]

1. e4 {[%emt 0:00:00]} e5 {[%emt 0:00:00]} 2. Nf3 {[%emt 0:00:00]} Nc6 {[%emt 0:00:00]} 3. Bc4 {[%emt 0:00:00]} Bc5 {[%emt 0:00:00]} 4. O-O {[%emt 0:00:00]} Nf6 {[%emt 0:00:00]} 5. d3 {[%emt 0:00:19]} d6 {[%emt 0:00:05]} 6. c3 {[%emt 0:00:06]} a6 {[%emt 0:00:09]} 7. Bb3 {[%emt 0:00:10]} Ba7 {[%emt 0:00:05]} 8. Nbd2 {[%emt 0:00:36]} O-O {[%emt 0:00:14]} 9. h3 {[%emt 0:00:32]} Be6 {[%emt 0:00:05]} 10. Re1 {[%emt 0:00:42]} Bxb3 {[%emt 0:00:06]} 11. Qxb3 {[%emt 0:00:45]} Qd7 {[%emt 0:00:41]} 12. Nf1 {[%emt 0:02:44]} h6 {[%emt 0:00:06]} 13. Ng3 {[%emt 0:01:14]} Rab8 {[%emt 0:07:55]} 14. Qd1 {[%emt 0:07:37]} Rfe8 {[%emt 0:04:56]} 15. Nh4 {[%emt 0:02:46]} d5 {[%emt 0:09:12]} 16. Qf3 {[%emt 0:02:30]} Qe6 {[%emt 0:01:27]} 17. Nhf5 {[%emt 0:07:56]} Ne7 {[%emt 0:01:33]} 18. Nxe7+ {[%emt 0:01:13]} Rxe7 {[%emt 0:01:01]} 19. Nf5 {[%emt 0:00:15]} Ree8 {[%emt 0:08:27]} 20. Bxh6 {[%emt 0:02:00]} Nxe4 {[%emt 0:07:59]} 21. dxe4 {[%emt 0:01:46]} gxh6 {[%emt 0:02:12]} 22. exd5 {[%emt 0:00:39]} Qg6 {[%emt 0:01:04]} 23. Re4 {[%emt 0:00:35]} h5 {[%emt 0:04:16]} 24. Rh4 {[%emt 0:04:41]} e4 {[%emt 0:06:02]} 25. Rxe4 {[%emt 0:02:33]} Rxe4 {[%emt 0:01:08]} 26. Qxe4 {[%emt 0:00:05]} Qb6 {[%emt 0:02:23]} 27. Qf3 {[%emt 0:03:58]} Re8 {[%emt 0:02:11]} 28. d6 {[%emt 0:00:42]} 1-0

[Event "Lichtenrader Herbst 2019"]
[Site "Berlin"]
[Date "2019.10.20"]
[Round "9.7"]
[White "Schnabel, Ralf"]
[Black "Petersen, Marcel"]
[Result "1-0"]
[ECO "B85"]
[WhiteElo "2235"]
[BlackElo "1818"]
[Annotator "NA"]
[PlyCount "77"]
[EventDate "2019.10.12"]
[EventType "swiss"]
[EventCountry "GER"]
[SourceTitle "playchess.com"]
[Source "ChessBase"]
[SourceQuality "1"]
[TimeControl "40/5400+30:1800+30"]

1. e4 {[%emt 0:00:00]} c5 {[%emt 0:00:00]} 2. Nf3 {[%emt 0:00:00]} d6 {[%emt 0:00:00]} 3. d4 {[%emt 0:00:00]} cxd4 {[%emt 0:00:00]} 4. Nxd4 {[%emt 0:00:00]} Nf6 {[%emt 0:00:00]} 5. Nc3 {[%emt 0:00:00]} a6 {[%emt 0:00:00]} 6. Be3 {[%emt 0:01:47]} e6 {[%emt 0:01:40]} 7. Be2 {[%emt 0:04:26]} Be7 {[%emt 0:00:16]} 8. O-O {[%emt 0:00:07]} O-O {[%emt 0:00:07]} 9. f4 {[%emt 0:00:05]} e5 {[%emt 0:02:00]} 10. fxe5 {[%emt 0:06:35]} dxe5 {[%emt 0:00:06]} 11. Nf5 {[%emt 0:00:05]} Bxf5 {[%emt 0:02:05]} 12. Rxf5 {[%emt 0:02:28]} Nc6 {[%emt 0:00:40]} 13. Bd3 {[%emt 0:41:33]} b5 {[%emt 0:10:04]} 14. a3 {[%emt 0:02:24]} Rc8 {[%emt 0:04:42]} 15. Kh1 {[%emt 0:07:12]} g6 {[%emt 0:04:03]} 16. Rf2 {[%emt 0:01:55]} Nd4 {[%emt 0:03:41]} 17. Bh6 {[%emt 0:01:11]} Re8 {[%emt 0:00:07]} 18. h3 {[%emt 0:02:42]} Nh5 {[%emt 0:05:12]} 19. Qg4 {[%emt 0:05:24]} Bh4 {[%emt 0:04:51]} 20. Rd2 {[%emt 0:00:04]} Bf6 {[%emt 0:11:11]} 21. Nd5 {[%emt 0:02:15]} Bg7 {[%emt 0:00:19]} 22. Bg5 {[%emt 0:03:00]} f6 {[%emt 0:01:13]} 23. Be3 {[%emt 0:00:12]} Ne6 {[%emt 0:04:31]} 24. Rf1 {[%emt 0:03:02]} Qd6 {[%emt 0:02:28]} 25. Nb6 {[%emt 0:02:10]} Qe7 {[%emt 0:03:17]} 26. Nxc8 {[%emt 0:00:14]} Rxc8 {[%emt 0:00:02]} 27. c3 {[%emt 0:01:32]} Rd8 {[%emt 0:03:30]} 28. Rfd1 {[%emt 0:00:20]} Kf8 {[%emt 0:03:08]} 29. Bb1 {[%emt 0:02:54]} Rxd2 {[%emt 0:00:23]} 30. Rxd2 {[%emt 0:00:07]} Nhf4 {[%emt 0:00:14]} 31. Kh2 {[%emt 0:01:11]} h5 {[%emt 0:01:35]} 32. Qd1 {[%emt 0:01:07]} f5 {[%emt 0:01:42]} 33. exf5 {[%emt 0:01:18]} gxf5 {[%emt 0:00:22]} 34. Bxf5 {[%emt 0:00:29]} Bh6 {[%emt 0:00:53]} 35. g3 {[%emt 0:01:30]} Qf6 {[%emt 0:02:42]} 36. Bxe6 {[%emt 0:01:11]} Nxe6 {[%emt 0:00:51]} 37. Rf2 {[%emt 0:00:13]} Nf4 {[%emt 0:00:06]} 38. gxf4 {[%emt 0:00:06]} exf4 {[%emt 0:00:05]} 39. Bc5+ {[%emt 0:00:10]} 1-0

[Event "Lichtenrader Herbst 2019"]
[Site "Berlin"]
[Date "2019.10.20"]
[Round "9.8"]
[White "Krefenstein, Sergej"]
[Black "Nitsche, Nikolai"]
[Result "1-0"]
[ECO "C06"]
[WhiteElo "2139"]
[BlackElo "1789"]
[Annotator "ChessBase"]
[PlyCount "53"]
[EventDate "2019.10.12"]
[EventType "swiss"]
[EventCountry "GER"]
[SourceTitle "playchess.com"]
[Source "ChessBase"]
[SourceQuality "1"]
[TimeControl "40/5400+30:1800+30"]

1. e4 {[%emt 0:00:00]} e6 {[%emt 0:00:00]} 2. d4 {[%emt 0:00:00]} d5 {[%emt 0:00:00]} 3. Nd2 {[%emt 0:00:00]} Nf6 {[%emt 0:00:06]} 4. e5 {[%emt 0:00:08]} Nfd7 {[%emt 0:00:07]} 5. Bd3 {[%emt 0:00:26]} c5 {[%emt 0:00:14]} 6. c3 {[%emt 0:00:08]} Nc6 {[%emt 0:00:17]} 7. Ne2 {[%emt 0:00:27]} f6 {[%emt 0:00:25]} 8. exf6 {[%emt 0:02:08]} Qxf6 {[%emt 0:01:01]} 9. Nf3 {[%emt 0:01:23]} Bd6 {[%emt 0:00:50]} 10. Bg5 {[%emt 0:06:06]} Qf7 {[%emt 0:03:32]} 11. O-O {[%emt 0:02:43]} e5 {[%emt 0:01:37]} 12. dxe5 {[%emt 0:04:39]} Ndxe5 {[%emt 0:00:09]} 13. Nxe5 {[%emt 0:00:22]} Nxe5 {[%emt 0:00:11]} 14. Bc2 {[%emt 0:06:17]} O-O {[%emt 0:01:23]} 15. Ng3 {[%emt 0:10:36]} Bd7 {[%emt 0:07:14]} 16. f4 {[%emt 0:09:34]} Ng4 {[%emt 0:01:53]} 17. Qd3 {[%emt 0:03:45]} g6 {[%emt 0:02:00]} 18. h3 {[%emt 0:11:00]} c4 {[%emt 0:03:16]} 19. Qd2 {[%emt 0:02:02]} Bc5+ {[%emt 0:00:45]} 20. Kh1 {[%emt 0:00:03]} Ne3 {[%emt 0:00:09]} 21. Rf3 {[%emt 0:05:07]} Nxc2 {[%emt 0:01:43]} 22. Qxc2 {[%emt 0:00:03]} Rae8 {[%emt 0:00:43]} 23. Bh6 {[%emt 0:01:17]} d4 {[%emt 0:01:07]} 24. cxd4 {[%emt 0:01:02]} Bxd4 {[%emt 0:00:08]} 25. Bxf8 {[%emt 0:00:22]} Rxf8 {[%emt 0:01:13]} 26. Rd1 {[%emt 0:01:43]} Bc5 {[%emt 0:00:31]} 27. Rxd7 {[%emt 0:01:29]} 1-0